bitfinex/quotes_BTCUSD_20241206
["timestamp","ask_amount","ask_price","bid_price","bid_amount"]
[1733495586165,0.201147,99430.0,99414.0,0.279878]
[1733495586375,0.201129,99439.0,99414.0,0.10503154]
[1733495586588,0.201104,99451.0,99416.0,0.201174]
[1733495586815,0.201104,99451.0,99433.0,0.201138]
[1733495587031,0.15,99468.0,99417.0,0.15667709]
[1733495587278,0.201129,99439.0,99423.0,0.20116]
[1733495587493,0.201129,99439.0,99424.0,0.10503154]
[1733495587708,0.00017259,99451.0,99402.0,0.00100575]
[1733495587928,0.10503154,99450.0,99419.0,0.009]
[1733495588141,0.201147,99430.0,99419.0,0.009]
[1733495588361,0.201139,99434.0,99415.0,0.201175]
[1733495588617,0.201139,99434.0,99423.0,0.009]
[1733495588826,0.201139,99434.0,99417.0,0.201172]
[1733495589248,0.201139,99434.0,99419.0,0.009]
[1733495589491,0.201139,99434.0,99417.0,0.201172]
[1733495589726,0.201169,99419.0,99402.0,0.201202]
[1733495589960,0.0814,99432.0,99382.0,0.0463]
[1733495590182,0.201178,99414.0,99397.0,0.201211]
[1733495590407,0.201178,99414.0,99397.0,0.30624254]
[1733495590647,0.10503154,99431.0,99391.0,0.201223]
[1733495590648,0.201188,99410.0,99391.0,0.201223]
[1733495590876,0.201211,99399.0,99383.0,0.201241]
[1733495591093,0.201185,99411.0,99392.0,0.201223]
[1733495591320,0.201185,99411.0,99394.0,0.201219]
[1733495591533,0.201152,99427.0,99382.0,0.04687569]
[1733495591749,0.25,99420.0,99382.0,0.00057569]
[1733495591958,0.201216,99396.0,99382.0,0.00057569]
[1733495592400,0.15,99418.0,99382.0,0.00057569]
[1733495592633,0.201218,99395.0,99382.0,0.00057569]
[1733495592859,0.19050315,99418.0,99382.0,0.00057569]
[1733495592860,0.10503154,99394.0,99382.0,0.00057569]
[1733495593078,0.201237,99385.0,99382.0,0.00057569]
[1733495593302,0.201241,99383.0,99382.0,0.00957569]
[1733495593550,0.30627254,99383.0,99382.0,0.00057569]
[1733495593820,0.75627254,99383.0,99382.0,0.00057569]
[1733495594041,0.70627254,99383.0,99382.0,0.00057569]
[1733495594921,0.351245,99381.0,99380.0,0.00028069]
[1733495595165,0.50627654,99381.0,99380.0,0.00040832]
[1733495596284,0.59007654,99381.0,99380.0,0.00140832]
[1733495596521,0.65884825,99381.0,99380.0,0.00040832]
[1733495596737,0.65984825,99381.0,99380.0,0.00140832]
[1733495598075,0.40984825,99381.0,99380.0,0.00140832]
[1733495598763,0.49008088,99381.0,99380.0,0.00040832]
[1733495598981,0.47130917,99381.0,99380.0,0.00140832]
[1733495599408,0.30627654,99381.0,99380.0,0.00040832]
[1733495599631,0.30727654,99381.0,99380.0,0.00140832]
[1733495600698,0.75727654,99381.0,99380.0,0.00140832]
[1733495600907,0.70727654,99381.0,99380.0,0.00140832]
[1733495601129,0.86217146,99381.0,99380.0,0.00140832]
[1733495602454,0.92217047,99381.0,99380.0,0.00040832]
[1733495602670,0.92217047,99381.0,99380.0,0.00140832]
[1733495602886,0.201306,99351.0,99350.0,0.0017312]
[1733495603097,0.30633754,99351.0,99350.0,0.00190424]
[1733495603546,0.49566787,99351.0,99350.0,0.00190424]
[1733495605118,0.45633754,99351.0,99350.0,0.00190424]
[1733495605559,0.45833754,99351.0,99350.0,0.00190424]
[1733495605788,0.45633754,99351.0,99350.0,0.00190424]
[1733495606222,0.45633754,99351.0,99350.0,0.00290424]
[1733495606445,0.45633754,99351.0,99350.0,0.00190424]
[1733495606689,0.55036785,99351.0,99350.0,0.00190424]
[1733495606919,0.92906785,99351.0,99350.0,0.00190424]
[1733495607150,0.92706785,99351.0,99350.0,0.00190424]
[1733495607638,0.78303754,99351.0,99350.0,0.00190424]
[1733495608151,0.45633754,99351.0,99350.0,0.00190424]
[1733495608622,0.46533754,99351.0,99350.0,0.00290424]
[1733495608849,0.45633754,99351.0,99350.0,0.00190424]
[1733495609337,0.45833754,99351.0,99350.0,0.00190424]
[1733495609595,0.45633754,99351.0,99350.0,0.00190424]
[1733495610054,0.45933754,99351.0,99350.0,0.00190424]
[1733495610542,0.45633754,99351.0,99350.0,0.00190424]
[1733495611508,0.201277,99366.0,99350.0,0.00190424]
[1733495611765,0.25,99379.0,99351.0,0.201306]
[1733495611967,0.201253,99377.0,99351.0,0.24175822]
[1733495612190,0.201264,99372.0,99351.0,0.24175822]
[1733495612416,0.201274,99367.0,99351.0,0.24175822]
[1733495612647,0.201274,99367.0,99351.0,0.201306]
[1733495612933,0.201274,99367.0,99350.0,0.00190424]
[1733495613177,0.25,99379.0,99350.0,0.00190424]
[1733495613178,0.402604,99353.0,99350.0,0.00190424]
[1733495613641,0.26111508,99378.0,99351.0,0.002]
[1733495613901,0.0029609,99383.0,99351.0,0.002]
[1733495613902,0.201259,99374.0,99351.0,0.002]
[1733495614165,0.201275,99367.0,99351.0,0.002]
[1733495614405,0.04562905,99373.0,99351.0,0.002]
[1733495614630,0.10503154,99366.0,99351.0,0.002]
[1733495614860,0.2013,99354.0,99351.0,0.002]
[1733495615298,0.4026,99354.0,99351.0,0.002]
[1733495615560,0.4026,99354.0,99350.0,0.00190424]
[1733495615561,0.201304,99352.0,99350.0,0.00190424]
[1733495615780,0.30633554,99352.0,99350.0,0.00190424]
[1733495615991,0.30633554,99352.0,99350.0,0.00990424]
[1733495616258,0.25503154,99351.0,99350.0,0.00190424]
[1733495616952,0.38493154,99351.0,99350.0,0.00190424]
[1733495617172,0.48982646,99351.0,99350.0,0.00290424]
[1733495617389,0.48982646,99351.0,99350.0,0.00190424]
[1733495618872,0.48982646,99351.0,99350.0,0.00290424]
[1733495618873,0.49882646,99351.0,99350.0,0.00290424]
[1733495620202,0.49882646,99351.0,99330.0,0.0017316]
[1733495620203,0.351347,99331.0,99330.0,0.0017316]
[1733495620459,0.75637854,99331.0,99330.0,0.0017316]
[1733495620738,0.82906677,99331.0,99330.0,0.0017316]
[1733495620974,0.90526677,99331.0,99330.0,0.0017316]
[1733495621204,0.90526677,99331.0,99310.0,0.00173]
[1733495621205,0.351387,99311.0,99310.0,0.00173]
[1733495621432,0.70641854,99311.0,99310.0,0.00173]
[1733495622577,0.70641854,99311.0,99310.0,0.00230659]
[1733495622800,0.75204759,99311.0,99310.0,0.00230659]
[1733495623023,0.75304759,99311.0,99310.0,0.01030659]
[1733495623932,0.80304759,99311.0,99310.0,0.01030659]
[1733495624157,0.776407,99301.0,99300.0,0.09557464]
[1733495624407,0.93003854,99301.0,99300.0,6.4e-07]
[1733495624876,0.53143854,99301.0,99300.0,6.4e-07]
[1733495625104,0.10503154,99301.0,99300.0,6.4e-07]
[1733495625319,0.00157481,99311.0,99300.0,6.4e-07]
[1733495625563,0.201402,99304.0,99300.0,6.4e-07]
[1733495625789,0.201405,99302.0,99300.0,6.4e-07]
[1733495626008,0.10503154,99301.0,99300.0,6.4e-07]
[1733495626469,0.25603154,99301.0,99300.0,0.00200064]
[1733495626703,0.201399,99306.0,99300.0,6.4e-07]
[1733495626926,0.00057481,99311.0,99300.0,6.4e-07]
[1733495627217,0.001,99302.0,99300.0,0.20240964]
[1733495627444,0.00057481,99311.0,99302.0,0.201405]
[1733495627665,0.00057481,99311.0,99307.0,0.201395]
[1733495627880,0.00057481,99311.0,99307.0,0.40279]
[1733495628104,0.00057481,99311.0,99308.0,0.00454401]
[1733495628354,0.00057481,99311.0,99309.0,0.201391]
[1733495628572,0.402695,99331.0,99309.0,0.00454258]
[1733495628573,0.201347,99331.0,99309.0,0.00454258]
[1733495628806,0.201357,99326.0,99309.0,0.00454258]
[1733495629034,0.10503154,99330.0,99310.0,0.201389]
[1733495629467,0.10503154,99330.0,99311.0,0.00454615]
[1733495629929,0.201353,99328.0,99311.0,0.00454615]
[1733495630162,0.201353,99328.0,99309.0,0.00057481]
[1733495630578,0.201353,99328.0,99310.0,0.00454729]
[1733495631056,0.402707,99328.0,99310.0,0.00454729]
[1733495631289,0.201364,99323.0,99310.0,0.00454729]
[1733495631530,0.201364,99323.0,99309.0,0.00057481]
[1733495631753,0.201364,99323.0,99310.0,0.00454729]
[1733495632206,0.201355,99327.0,99310.0,0.00454729]
[1733495632207,0.201373,99319.0,99310.0,0.00454729]
[1733495632439,0.201383,99313.0,99310.0,0.00454729]
[1733495632668,0.201383,99313.0,99309.0,0.00057481]
[1733495633098,0.201383,99313.0,99310.0,0.002]
[1733495633099,0.402767,99313.0,99310.0,0.002]
[1733495633314,0.201387,99311.0,99309.0,0.00057481]
[1733495633553,0.25503154,99310.0,99309.0,0.00057481]
[1733495633741,0.32081169,99310.0,99309.0,0.00057481]
[1733495634843,0.40021169,99310.0,99309.0,0.00057481]
[1733495635099,0.45021169,99310.0,99309.0,8.1e-07]
[1733495635751,0.45121169,99310.0,99309.0,8.1e-07]
[1733495635987,0.61045591,99310.0,99309.0,8.1e-07]
[1733495637517,0.61045591,99310.0,99300.0,0.00173244]
[1733495637518,0.651407,99301.0,99300.0,2.5e-07]
[1733495637733,0.86133346,99301.0,99300.0,2.5e-07]
[1733495637952,0.25,99288.0,99287.0,0.01677435]
[1733495638165,0.25,99288.0,99287.0,3.5e-07]
[1733495638166,2.25646554,99288.0,99287.0,3.5e-07]
[1733495639245,2.25646554,99288.0,99280.0,7.5e-07]
[1733495639246,0.251448,99281.0,99280.0,7.5e-07]
[1733495639473,0.50647954,99281.0,99280.0,7.5e-07]
[1733495639737,0.25,99274.0,99273.0,0.01810759]
[1733495640021,0.25,99274.0,99250.0,0.0017298]
[1733495640022,0.201489,99261.0,99250.0,0.0017298]
[1733495640244,0.45652054,99261.0,99250.0,0.0017298]
[1733495641112,0.45652054,99261.0,99260.0,0.04149243]
[1733495642006,0.47672617,99261.0,99260.0,0.04149243]
[1733495642452,0.54250632,99261.0,99260.0,0.04149243]
[1733495642673,0.54350632,99261.0,99260.0,0.04149243]
[1733495642897,0.54350632,99261.0,99260.0,1e-08]
[1733495643113,0.54450632,99261.0,99260.0,0.00900001]
[1733495643343,0.54450632,99261.0,99260.0,1e-08]
[1733495643344,0.84450632,99261.0,99260.0,1e-08]
[1733495643596,0.84450632,99261.0,99250.0,0.0017298]
[1733495643597,0.451509,99251.0,99250.0,0.0017298]
[1733495643827,0.79699174,99251.0,99250.0,0.00190321]
[1733495644720,0.79699174,99251.0,99250.0,2.1e-07]
[1733495644721,1.09699174,99251.0,99250.0,2.1e-07]
[1733495644954,0.429515,99248.0,99247.0,2.9e-07]
[1733495645203,0.429515,99248.0,99240.0,0.0017314]
[1733495645204,0.901529,99241.0,99240.0,6.9e-07]
[1733495645427,1.00656054,99241.0,99240.0,6.9e-07]
[1733495645637,2.52100426,99241.0,99240.0,6.9e-07]
[1733495645859,0.4,99221.0,99192.0,0.0147243]
[1733495646076,0.97973294,99221.0,99192.0,0.0147243]
[1733495646281,0.97973294,99221.0,99220.0,0.00500817]
[1733495646282,1.07973294,99221.0,99220.0,0.00500817]
[1733495646530,0.60159,99211.0,99210.0,6e-07]
[1733495646754,2.30915867,99211.0,99210.0,6e-07]
[1733495646960,2.35915867,99211.0,99210.0,6e-07]
[1733495647411,2.35933093,99211.0,99210.0,6e-07]
[1733495647627,2.2067938,99211.0,99210.0,6e-07]
[1733495647875,0.7567938,99211.0,99210.0,6e-07]
[1733495648093,0.7067938,99211.0,99210.0,6e-07]
[1733495648513,0.7567938,99211.0,99210.0,6e-07]
[1733495648725,0.86323046,99211.0,99210.0,6e-07]
[1733495648940,1.12123046,99211.0,99210.0,6e-07]
[1733495649376,1.17123046,99211.0,99210.0,6e-07]
[1733495649651,2.67123046,99211.0,99210.0,6e-07]
[1733495649874,2.99423046,99211.0,99210.0,6e-07]
[1733495650096,0.05,99208.0,99207.0,1e-08]
[1733495650318,0.42723154,99208.0,99207.0,1e-08]
[1733495650543,0.42723154,99208.0,99192.0,0.0147243]
[1733495650544,0.05,99195.0,99192.0,0.0147243]
[1733495650763,0.58265454,99195.0,99192.0,0.0147243]
[1733495651182,2.08265454,99195.0,99192.0,0.0147243]
[1733495651419,0.55,99182.0,99167.0,0.04893555]
[1733495651657,1.00668054,99182.0,99181.0,0.01629069]
[1733495652324,0.651677,99168.0,99167.0,0.04893555]
[1733495652551,0.75670854,99168.0,99167.0,0.04893555]
[1733495652773,0.70670854,99168.0,99167.0,0.04893555]
[1733495653025,0.45670854,99168.0,99167.0,0.04893555]
[1733495653244,0.25,99174.0,99167.0,0.04893555]
[1733495653462,0.2731314,99184.0,99167.0,0.04893555]
[1733495653673,0.00017213,99174.0,99167.0,0.04893555]
[1733495653891,0.201649,99182.0,99167.0,0.04893555]
[1733495654120,0.2731314,99184.0,99167.0,0.04951343]
[1733495654121,0.18317693,99181.0,99167.0,0.04951343]
[1733495654344,0.10503154,99181.0,99167.0,0.04951343]
[1733495654560,0.30668254,99181.0,99180.0,0.0017338]
[1733495654775,0.45668254,99181.0,99180.0,0.0017338]
[1733495655659,0.58388254,99181.0,99180.0,0.0017338]
[1733495655881,0.59562009,99181.0,99180.0,0.0017338]
[1733495656109,0.70051501,99181.0,99180.0,0.0017338]
[1733495656320,0.58388254,99181.0,99180.0,0.0017338]
[1733495656545,2.08388254,99181.0,99180.0,0.0017338]
[1733495657432,0.70668254,99181.0,99180.0,0.0017338]
[1733495657865,0.71568254,99181.0,99180.0,0.0027338]
[1733495658088,0.81157746,99181.0,99180.0,0.0027338]
[1733495658354,0.70668254,99181.0,99180.0,0.0027338]
[1733495658570,0.71268254,99181.0,99180.0,0.0027338]
[1733495658805,0.70668254,99181.0,99180.0,0.0017338]
[1733495659029,0.71368254,99181.0,99180.0,0.0017338]
[1733495659246,0.86857746,99181.0,99180.0,0.0037338]
[1733495659462,0.86157746,99181.0,99180.0,0.0037338]
[1733495659704,2.36157746,99181.0,99180.0,0.0037338]
[1733495660137,2.71157746,99181.0,99180.0,8e-07]
[1733495660364,0.1,99151.0,99150.0,0.0017326]
[1733495660580,0.68503154,99151.0,99150.0,0.00190473]
[1733495660786,0.60503154,99151.0,99150.0,0.00190473]
[1733495661229,2.10503154,99151.0,99150.0,7.3e-07]
[1733495661903,2.15123154,99151.0,99150.0,7.3e-07]
[1733495662116,2.15123154,99151.0,99150.0,0.00100073]
[1733495662117,2.37892283,99151.0,99150.0,0.00100073]
[1733495662318,2.37092283,99151.0,99150.0,0.00100073]
[1733495662524,2.32771737,99151.0,99150.0,0.00100073]
[1733495662727,2.33671737,99151.0,99150.0,7.3e-07]
[1733495662959,2.43261229,99151.0,99150.0,7.3e-07]
[1733495663585,2.32771737,99151.0,99150.0,7.3e-07]
[1733495663723,2.37771737,99151.0,99150.0,7.3e-07]
[1733495664136,0.901751,99132.0,99091.0,0.0477]
[1733495664343,0.1317,99129.0,99128.0,0.02467463]
[1733495664541,1.00986294,99129.0,99128.0,6.3e-07]
[1733495664747,1.11475786,99129.0,99128.0,6.3e-07]
[1733495665120,2.61475786,99129.0,99128.0,6.3e-07]
[1733495665334,2.64603959,99129.0,99128.0,6.3e-07]
[1733495665686,0.651785,99115.0,99080.0,0.0017326]
[1733495665948,0.75681654,99115.0,99080.0,0.0017326]
[1733495666126,0.75681654,99115.0,99114.0,5.3e-07]
[1733495666127,0.7702389,99115.0,99114.0,5.3e-07]
[1733495666330,0.7702389,99115.0,99080.0,0.0017326]
[1733495666331,0.1,99111.0,99110.0,1.3e-07]
[1733495666533,1.251812,99102.0,99101.0,9.1e-07]
[1733495666731,1.251812,99102.0,99101.0,0.00017436]
[1733495666732,1.35684354,99102.0,99101.0,0.00017436]
[1733495666933,1.35684354,99102.0,99088.0,0.03676332]
[1733495666934,0.6,99089.0,99088.0,0.03676332]
[1733495667136,0.6,99089.0,99080.0,0.0017326]
[1733495667137,0.35,99081.0,99080.0,0.0017326]
[1733495667341,0.55,99075.0,99074.0,0.02559071]
[1733495667517,0.70689854,99075.0,99074.0,0.02559071]
[1733495667923,1.60503154,99075.0,99074.0,0.02559071]
[1733495668123,0.10503154,99075.0,99074.0,0.02559071]
[1733495668519,1.75903154,99075.0,99074.0,0.02559071]
[1733495668925,0.25503154,99075.0,99074.0,0.02759071]
[1733495669144,0.25803154,99075.0,99074.0,0.02759071]
[1733495669356,0.25803154,99075.0,99074.0,0.02559071]
[1733495669357,0.36292646,99075.0,99074.0,0.02559071]
[1733495669570,0.36292646,99075.0,99050.0,0.0017326]
[1733495669571,0.25,99051.0,99050.0,0.0017326]
[1733495669781,0.70694754,99051.0,99050.0,0.0017326]
[1733495669985,0.10503154,99051.0,99050.0,0.0017326]
[1733495670401,0.18798919,99075.0,99050.0,0.0017326]
[1733495670402,0.25,99079.0,99050.0,0.00800114]
[1733495670622,0.05,99100.0,99050.0,0.00800114]
[1733495670623,0.10503154,99078.0,99051.0,0.1263]
[1733495670837,0.2105,99094.0,99051.0,0.1263]
[1733495670838,0.002,99075.0,99074.0,0.002]
[1733495671271,0.55689854,99075.0,99074.0,0.002]
[1733495671480,0.55689854,99075.0,99051.0,0.023]
[1733495671481,0.35503154,99075.0,99051.0,0.023]
[1733495671709,0.00217297,99079.0,99052.0,0.0010096]
[1733495671923,0.10503154,99078.0,99051.0,0.02400945]
[1733495672140,0.01117297,99079.0,99060.0,0.28207509]
[1733495672352,0.00017297,99079.0,99061.0,0.023]
[1733495672560,0.008,99075.0,99074.0,0.001]
[1733495672778,0.008,99075.0,99074.0,0.0717]
[1733495672984,0.008,99075.0,99074.0,0.07270928]
[1733495673196,0.25,99134.0,99077.0,0.251863]
[1733495673450,0.00017329,99115.0,99082.0,0.023]
[1733495673609,0.00017329,99115.0,99101.0,0.023]
[1733495674250,0.00017329,99115.0,99099.0,0.023]
[1733495674477,0.00017329,99115.0,99094.0,0.023]
[1733495674706,0.00017329,99115.0,99097.0,0.201822]
[1733495674919,0.201787,99114.0,99095.0,0.201826]
[1733495675128,0.201826,99096.0,99094.0,0.023]
[1733495675351,0.10503154,99113.0,99094.0,0.023]
[1733495675570,0.201791,99112.0,99095.0,0.023]
[1733495675800,0.10503154,99112.0,99097.0,0.023]
[1733495676215,0.10503154,99112.0,99099.0,0.023]
[1733495676428,0.00017329,99115.0,99099.0,0.023]
[1733495676631,0.00017329,99115.0,99101.0,0.023]
[1733495676848,0.00017329,99115.0,99094.0,0.003]
[1733495676849,0.00017329,99115.0,99103.0,0.023]
[1733495677271,0.201787,99114.0,99103.0,0.023]
[1733495677478,0.201787,99114.0,99096.0,0.023]
[1733495677684,0.00017329,99115.0,99101.0,0.001]
[1733495677894,0.201787,99114.0,99096.0,0.023]
[1733495678108,0.001,99112.0,99098.0,0.023]
[1733495678343,0.201802,99107.0,99103.0,0.001]
[1733495678613,0.10603154,99112.0,99091.0,0.023]
[1733495678614,0.201793,99111.0,99091.0,0.023]
[1733495678834,0.00017329,99115.0,99090.0,0.0017354]
[1733495678835,1.60503154,99110.0,99101.0,0.003]
[1733495679042,0.201812,99102.0,99101.0,0.004]
[1733495679245,0.30684354,99102.0,99101.0,0.004]
[1733495679458,0.30684354,99102.0,99101.0,0.001]
[1733495680288,0.201826,99095.0,99091.0,0.003]
[1733495680696,0.403654,99095.0,99091.0,0.003]
[1733495680914,0.040398,99138.0,99095.0,0.15]
[1733495681158,0.05,99176.0,99093.0,0.0083]
[1733495681159,0.28194735,99140.0,99104.0,0.023]
[1733495681378,0.25,99145.0,99110.0,0.023]
[1733495681604,0.201733,99141.0,99112.0,0.023]
[1733495681808,0.201743,99136.0,99114.0,0.023]
[1733495682029,0.201743,99136.0,99112.0,0.023]
[1733495682231,0.403507,99131.0,99112.0,0.023]
[1733495682460,0.201763,99127.0,99112.0,0.023]
[1733495682677,0.201799,99109.0,99090.0,0.0491354]
[1733495682903,0.201812,99103.0,99090.0,0.0491354]
[1733495683112,0.10503154,99102.0,99090.0,0.0491354]
[1733495683318,1.5,99101.0,99090.0,0.0491354]
[1733495683526,0.201816,99100.0,99090.0,0.0491354]
[1733495683969,0.201816,99100.0,99093.0,0.009]
[1733495684184,0.201816,99100.0,99091.0,0.023]
[1733495684392,0.201798,99109.0,99091.0,0.023]
[1733495684630,0.00017329,99115.0,99091.0,0.023]
[1733495684830,0.30681854,99114.0,99098.0,0.023]
[1733495685080,0.001,99109.0,99098.0,0.023]
[1733495685319,0.001,99109.0,99093.0,0.009]
[1733495685320,0.001,99109.0,99095.0,0.201826]
[1733495685538,0.10503154,99114.0,99097.0,0.224822]
[1733495685745,0.30681954,99114.0,99097.0,0.224822]
[1733495685979,0.10503154,99114.0,99097.0,0.224822]
[1733495686385,0.201789,99113.0,99093.0,0.023]
[1733495686589,0.10503154,99113.0,99093.0,0.023]
[1733495686800,0.001,99100.0,99098.0,0.023]
[1733495687023,0.201801,99108.0,99098.0,0.023]
[1733495687253,0.201795,99110.0,99098.0,0.023]
[1733495687692,0.10503154,99113.0,99098.0,0.224819]
[1733495687907,0.001,99100.0,99098.0,0.230819]
[1733495688155,0.10503154,99113.0,99102.0,0.20181]
[1733495688371,0.00017329,99115.0,99098.0,0.023]
[1733495688372,0.00017329,99115.0,99108.0,0.023]
[1733495688817,0.201797,99110.0,99098.0,0.001]
[1733495689010,0.201787,99114.0,99098.0,0.001]
[1733495689227,0.201787,99114.0,99100.0,0.023]
[1733495689446,0.201787,99114.0,99103.0,0.023]
[1733495689912,0.20195929,99115.0,99102.0,0.023]
[1733495690198,0.00017329,99115.0,99111.0,0.201793]
[1733495690421,0.00017329,99115.0,99112.0,0.023]
[1733495690874,0.00017329,99115.0,99105.0,0.023]
[1733495691325,0.00017329,99115.0,99110.0,0.023]
[1733495691824,0.00017329,99115.0,99101.0,0.023]
[1733495691825,0.00117329,99115.0,99101.0,0.023]
[1733495692087,0.20295929,99115.0,99101.0,0.023]
[1733495692316,0.201789,99113.0,99103.0,0.003]
[1733495692544,0.201804,99106.0,99103.0,0.003]
[1733495692752,0.201804,99106.0,99090.0,0.0017354]
[1733495692954,0.201804,99106.0,99091.0,0.201834]
[1733495693161,0.201804,99106.0,99101.0,0.004]
[1733495693364,0.201804,99106.0,99105.0,0.001]
[1733495693609,0.201804,99106.0,99091.0,0.201834]
[1733495693790,0.201804,99106.0,99092.0,0.023]
[1733495694023,0.203804,99106.0,99092.0,0.023]
[1733495694410,0.203804,99106.0,99095.0,0.201826]
[1733495694411,0.001,99106.0,99095.0,0.201826]
[1733495694619,0.25,99160.0,99107.0,0.023]
[1733495694838,0.381,99182.0,99119.0,0.224777]
[1733495694839,0.201708,99153.0,99119.0,0.224777]
[1733495695047,0.201731,99142.0,99120.0,0.023]
[1733495695481,0.10503154,99141.0,99114.0,0.023]
[1733495695699,0.10503154,99141.0,99110.0,0.023]
[1733495695916,0.201765,99125.0,99110.0,0.023]
[1733495696144,0.201764,99126.0,99107.0,0.023]
[1733495696356,0.201764,99126.0,99109.0,0.023]
[1733495696825,0.201764,99126.0,99110.0,0.009]
[1733495697036,0.201764,99126.0,99111.0,0.023]
[1733495697250,0.10503154,99141.0,99109.0,0.023]
[1733495697476,0.002,99126.0,99111.0,0.023]
[1733495697697,0.001,99126.0,99111.0,0.023]
[1733495697944,0.001,99126.0,99108.0,0.083]
[1733495697945,0.403548,99121.0,99106.0,0.023]
[1733495698150,0.201774,99121.0,99111.0,0.023]
[1733495698360,0.201769,99124.0,99110.0,0.009]
[1733495698564,0.403522,99127.0,99110.0,0.009]
[1733495698780,0.10503154,99128.0,99110.0,0.009]
[1733495698995,0.201771,99122.0,99110.0,0.009]
[1733495699219,0.10503154,99122.0,99110.0,0.009]
[1733495699423,0.201785,99116.0,99111.0,0.009]
[1733495699855,0.40357,99116.0,99099.0,0.201817]
[1733495700294,0.40357,99116.0,99111.0,0.009]
[1733495700516,0.15997048,99150.0,99110.0,0.009]
[1733495700725,0.25,99165.0,99111.0,0.02400892]
[1733495700726,0.201755,99130.0,99111.0,0.02400892]
[1733495700938,0.003,99116.0,99115.0,0.201785]
[1733495701156,0.10503154,99147.0,99126.0,0.201762]
[1733495701406,0.10503154,99147.0,99106.0,0.05]
[1733495701407,0.003,99116.0,99113.0,0.173]
[1733495701616,0.25,99161.0,99103.0,0.18119865]
[1733495701617,0.25,99179.0,99133.0,0.05]
[1733495701846,0.2731314,99177.0,99144.0,0.023]
[1733495702059,0.2731314,99177.0,99146.0,0.023]
[1733495702060,0.10503154,99176.0,99146.0,0.023]
[1733495702268,0.10503154,99176.0,99155.0,0.023]
[1733495702269,0.201674,99170.0,99155.0,0.023]
[1733495702703,0.201665,99175.0,99156.0,0.201702]
[1733495702914,0.10503154,99174.0,99156.0,0.201702]
[1733495703179,0.10503154,99174.0,99149.0,0.023]
[1733495703180,0.20168,99167.0,99149.0,0.023]
[1733495703397,0.20168,99167.0,99151.0,0.023]
[1733495703615,0.20169,99162.0,99137.0,0.08925154]
[1733495703836,0.10503154,99161.0,99132.0,0.023]
[1733495704091,0.201696,99159.0,99132.0,0.023]
[1733495704303,0.2017,99157.0,99138.0,0.201738]
[1733495704568,0.201704,99155.0,99138.0,0.201738]
[1733495704788,0.201704,99155.0,99132.0,0.023]
[1733495704789,0.10503154,99154.0,99135.0,0.023]
[1733495705005,0.201724,99146.0,99132.0,0.032]
[1733495705222,0.201736,99140.0,99132.0,0.032]
[1733495705435,0.201726,99145.0,99132.0,0.032]
[1733495705851,0.10503154,99154.0,99133.0,0.201749]
[1733495705852,0.20171,99152.0,99133.0,0.201749]
[1733495706070,0.10503154,99151.0,99133.0,0.201749]
[1733495706521,0.1052048,99151.0,99133.0,0.201749]
[1733495706729,0.1052048,99151.0,99134.0,0.0435505]
[1733495706940,0.201714,99150.0,99133.0,0.201749]
[1733495707163,0.30674554,99150.0,99133.0,0.202749]
[1733495707387,0.00317326,99151.0,99133.0,0.001]
[1733495707614,0.00017326,99151.0,99150.0,0.201714]
[1733495707864,0.00017326,99151.0,99150.0,0.2524754]
[1733495707865,0.00317326,99151.0,99150.0,0.2524754]
[1733495708063,0.00321326,99151.0,99150.0,0.023]
[1733495708278,0.00021326,99151.0,99149.0,0.224716]
[1733495708933,0.00021326,99151.0,99150.0,0.023]
[1733495709380,0.00021326,99151.0,99150.0,0.02400841]
[1733495709629,0.00021326,99151.0,99150.0,0.48362678]
[1733495709849,0.0008677,99190.0,99151.0,0.201712]
[1733495710090,0.00104093,99190.0,99163.0,0.05]
[1733495710321,0.00104093,99190.0,99189.0,0.201635]
[1733495710543,0.00104093,99190.0,99189.0,0.224635]
[1733495710764,0.00104093,99190.0,99189.0,0.2718524]
[1733495711015,0.00104093,99190.0,99189.0,0.37688394]
[1733495711992,0.00315106,99218.0,99189.0,0.37803154]
[1733495712281,0.00057731,99210.0,99209.0,0.274594]
[1733495712532,0.00057731,99210.0,99209.0,0.52962554]
[1733495713227,0.201499,99257.0,99214.0,0.05]
[1733495713542,0.201474,99269.0,99229.0,0.05]
[1733495713771,0.10503154,99268.0,99233.0,0.05]
[1733495713983,0.0008669,99270.0,99209.0,0.009]
[1733495713984,0.25,99249.0,99209.0,0.009]
[1733495714246,0.25,99249.0,99216.0,0.023]
[1733495714247,0.201519,99246.0,99216.0,0.023]
[1733495714459,0.15653174,99248.0,99189.0,0.08928601]
[1733495714460,0.10503154,99222.0,99189.0,0.08928601]
[1733495714679,0.23827048,99230.0,99173.0,0.26785804]
[1733495714680,0.4,99215.0,99214.0,0.009]
[1733495714906,0.601582,99215.0,99214.0,0.009]
[1733495715139,0.70661354,99215.0,99214.0,0.009]
[1733495715374,0.70661354,99215.0,99166.0,0.08928601]
[1733495715375,0.201669,99173.0,99166.0,0.08928601]
[1733495715651,0.201669,99173.0,99164.0,0.13392902]
[1733495715652,0.201649,99182.0,99169.0,0.08908893]
[1733495715862,0.201649,99182.0,99150.0,0.201714]
[1733495715863,0.201669,99173.0,99170.0,0.0223018]
[1733495716108,0.10503154,99172.0,99147.0,0.05]
[1733495716336,0.201704,99156.0,99142.0,0.16908893]
[1733495716558,0.201704,99156.0,99145.0,0.08908893]
[1733495716790,0.201694,99161.0,99143.0,0.08918642]
[1733495717014,0.201685,99165.0,99149.0,0.00057731]
[1733495717233,0.201685,99165.0,99151.0,0.08918642]
[1733495717635,0.201685,99165.0,99149.0,0.00257731]
[1733495717864,0.40337,99165.0,99149.0,0.00257731]
[1733495718122,0.201685,99165.0,99149.0,0.00257731]
[1733495718377,0.10503154,99172.0,99150.0,0.201714]
[1733495718638,0.10503154,99172.0,99149.0,0.25029524]
[1733495718639,0.201685,99165.0,99149.0,0.25029524]
[1733495718874,0.201685,99165.0,99149.0,0.04657924]
[1733495719105,0.201685,99165.0,99149.0,0.00057731]
[1733495719106,0.10503154,99165.0,99149.0,0.00057731]
[1733495719344,0.5315739,99180.0,99149.0,0.00057731]